[Event "*** SCC Grand Prix: Titled Tuesday Blitz"]
[Site "Chess.com"]
[Date "2020.09.08"]
[Round "8"]
[White "Parhamov"]
[Black "Funo09"]
[Result "1-0"]
[WhiteElo "3005"]
[BlackElo "2848"]
[TimeControl "180+1"]
[EndTime "11:38:16 PDT"]
[Termination "Parhamov won by checkmate"]

1. c4 {[%clk 0:02:59.5]} 1... e5 {[%clk 0:02:59.7]} 2. g3 {[%clk 0:02:58.4]}
2... c6 {[%clk 0:02:59.7]} 3. Nf3 {[%clk 0:02:55.5]} 3... e4 {[%clk 0:02:59.2]}
4. Nd4 {[%clk 0:02:55.8]} 4... d5 {[%clk 0:02:59.4]} 5. cxd5 {[%clk 0:02:36.5]}
5... Qxd5 {[%clk 0:02:59.7]} 6. e3 {[%clk 0:02:35.3]} 6... Nf6 {[%clk
0:02:58.6]} 7. Nc3 {[%clk 0:02:35.2]} 7... Qe5 {[%clk 0:02:57.5]} 8. f4 {[%clk
0:02:26]} 8... exf3 {[%clk 0:02:54.5]} 9. Nxf3 {[%clk 0:02:25.8]} 9... Qc7
{[%clk 0:02:54.9]} 10. Bg2 {[%clk 0:02:25.5]} 10... Bb4 {[%clk 0:02:47.1]} 11.
O-O {[%clk 0:02:25.2]} 11... O-O {[%clk 0:02:47.6]} 12. Qc2 {[%clk 0:02:25]}
12... Bg4 {[%clk 0:02:40.6]} 13. e4 {[%clk 0:02:23.6]} 13... Re8 {[%clk
0:02:36.1]} 14. d3 {[%clk 0:01:51.3]} 14... Na6 {[%clk 0:02:31.4]} 15. Bf4
{[%clk 0:01:49.1]} 15... Qb6+ {[%clk 0:02:22.9]} 16. Kh1 {[%clk 0:01:49.2]}
16... Rad8 {[%clk 0:02:20.4]} 17. Bg5 {[%clk 0:01:42.4]} 17... Be7 {[%clk
0:02:20.2]} 18. a3 {[%clk 0:01:36]} 18... Bxf3 {[%clk 0:02:14.6]} 19. Rxf3
{[%clk 0:01:34.4]} 19... Nc5 {[%clk 0:02:09.4]} 20. b4 {[%clk 0:01:26.8]} 20...
Ne6 {[%clk 0:02:07.9]} 21. Be3 {[%clk 0:01:27.1]} 21... Nd4 {[%clk 0:02:06.1]}
22. Qb2 {[%clk 0:01:23.9]} 22... c5 {[%clk 0:01:38.3]} 23. Rff1 {[%clk
0:01:08.1]} 23... cxb4 {[%clk 0:01:26.7]} 24. Ne2 {[%clk 0:00:28.1]} 24... Bc5
{[%clk 0:00:58.2]} 25. axb4 {[%clk 0:00:28]} 25... Ng4 {[%clk 0:00:50.4]} 26.
Bg1 {[%clk 0:00:27.9]} 26... Nxe2 {[%clk 0:00:49.2]} 27. Qxe2 {[%clk 0:00:19]}
27... Bxg1 {[%clk 0:00:47.9]} 28. Qxg4 {[%clk 0:00:19.1]} 28... Bd4 {[%clk
0:00:46.8]} 29. Rab1 {[%clk 0:00:19.4]} 29... Rc8 {[%clk 0:00:41.8]} 30. e5
{[%clk 0:00:16.8]} 30... Bxe5 {[%clk 0:00:36.7]} 31. Bd5 {[%clk 0:00:16.7]}
31... Bf6 {[%clk 0:00:36.8]} 32. b5 {[%clk 0:00:14.3]} 32... Rcd8 {[%clk
0:00:32.1]} 33. Bc4 {[%clk 0:00:13.9]} 33... Rd4 {[%clk 0:00:30.1]} 34. Qh5
{[%clk 0:00:10.6]} 34... Re7 {[%clk 0:00:22.7]} 35. Rbe1 {[%clk 0:00:11]} 35...
Qd6 {[%clk 0:00:20.5]} 36. Qf3 {[%clk 0:00:03.8]} 36... Qd7 {[%clk 0:00:12.8]}
37. Rxe7 {[%clk 0:00:03.9]} 37... Qxe7 {[%clk 0:00:13.7]} 38. Rf2 {[%clk
0:00:04.8]} 38... Rd8 {[%clk 0:00:11.6]} 39. Re2 {[%clk 0:00:05.1]} 39... Qc7
{[%clk 0:00:12.1]} 40. Kg2 {[%clk 0:00:05.5]} 40... Rf8 {[%clk 0:00:12.1]} 41.
h4 {[%clk 0:00:05.9]} 41... b6 {[%clk 0:00:12.1]} 42. Kh3 {[%clk 0:00:06.4]}
42... Qd7+ {[%clk 0:00:12.2]} 43. g4 {[%clk 0:00:06.8]} 43... h6 {[%clk
0:00:10.9]} 44. Qf5 {[%clk 0:00:04.4]} 44... Qxf5 {[%clk 0:00:10]} 45. gxf5
{[%clk 0:00:05.3]} 45... Rd8 {[%clk 0:00:10.4]} 46. Ra2 {[%clk 0:00:04.7]} 46...
Rd7 {[%clk 0:00:09.5]} 47. h5 {[%clk 0:00:05.2]} 47... Kf8 {[%clk 0:00:09.8]}
48. Kg4 {[%clk 0:00:05.7]} 48... Be5 {[%clk 0:00:09.5]} 49. Kf3 {[%clk
0:00:06.2]} 49... f6 {[%clk 0:00:09.7]} 50. Ke4 {[%clk 0:00:06.7]} 50... Ke7
{[%clk 0:00:09.9]} 51. Be6 {[%clk 0:00:06.4]} 51... Rc7 {[%clk 0:00:07.2]} 52.
d4 {[%clk 0:00:06.8]} 52... Bd6 {[%clk 0:00:05]} 53. Rg2 {[%clk 0:00:05.9]}
53... Kf8 {[%clk 0:00:05.2]} 54. Kd5 {[%clk 0:00:06.2]} 54... Bb4 {[%clk
0:00:05.3]} 55. Ra2 {[%clk 0:00:06]} 55... Ke7 {[%clk 0:00:04.8]} 56. Rg2 {[%clk
0:00:05]} 56... Kf8 {[%clk 0:00:04.8]} 57. Rb2 {[%clk 0:00:05.6]} 57... Be7
{[%clk 0:00:05.2]} 58. Rb3 {[%clk 0:00:04.2]} 58... Ke8 {[%clk 0:00:04]} 59. Ke4
{[%clk 0:00:04.4]} 59... Kf8 {[%clk 0:00:04.1]} 60. Rb1 {[%clk 0:00:04.4]} 60...
Bd6 {[%clk 0:00:04.3]} 61. Rd1 {[%clk 0:00:04]} 61... Be7 {[%clk 0:00:04.3]} 62.
Bd5 {[%clk 0:00:04.5]} 62... Bd6 {[%clk 0:00:04.6]} 63. Bc6 {[%clk 0:00:05]}
63... Ke7 {[%clk 0:00:04]} 64. Kd5 {[%clk 0:00:05.5]} 64... Bg3 {[%clk
0:00:01.6]} 65. Rg1 {[%clk 0:00:05.5]} 65... Bf4 {[%clk 0:00:01.4]} 66. Rxg7+
{[%clk 0:00:05.9]} 66... Kd8 {[%clk 0:00:02.3]} 67. Rg8+ {[%clk 0:00:06.1]}
67... Ke7 {[%clk 0:00:02.8]} 68. Rg7+ {[%clk 0:00:05.9]} 68... Kd8 {[%clk
0:00:03.2]} 69. Rg6 {[%clk 0:00:06.5]} 69... Bg5 {[%clk 0:00:03.1]} 70. Kd6
{[%clk 0:00:06.3]} 70... Bf4+ {[%clk 0:00:01.9]} 71. Ke6 {[%clk 0:00:06.3]}
71... Bg5 {[%clk 0:00:02.8]} 72. Rg8# {[%clk 0:00:05.4]} 1-0

[Event "*** SCC Grand Prix: Titled Tuesday Blitz"]
[Site "Chess.com"]
[Date "2020.09.08"]
[Round "8"]
[White "Koksik_13"]
[Black "RaunakSadhwani2005"]
[Result "1-0"]
[WhiteElo "2673"]
[BlackElo "2844"]
[TimeControl "180+1"]
[EndTime "11:38:19 PDT"]
[Termination "Koksik_13 won by checkmate"]

1. d4 {[%clk 0:03:00.7]} 1... Nf6 {[%clk 0:01:25.1]} 2. Nc3 {[%clk 0:02:59.1]}
2... d5 {[%clk 0:01:24.1]} 3. Bf4 {[%clk 0:02:59.1]} 3... Bf5 {[%clk 0:01:21.6]}
4. e3 {[%clk 0:02:58.8]} 4... e6 {[%clk 0:01:21.3]} 5. f3 {[%clk 0:02:58.7]}
5... a6 {[%clk 0:01:20.4]} 6. g4 {[%clk 0:02:58.6]} 6... Bg6 {[%clk 0:01:21]} 7.
h4 {[%clk 0:02:59.5]} 7... h6 {[%clk 0:01:21.6]} 8. h5 {[%clk 0:02:59.4]} 8...
Bh7 {[%clk 0:01:21.9]} 9. Bd3 {[%clk 0:02:57.9]} 9... c5 {[%clk 0:01:22.1]} 10.
Bxh7 {[%clk 0:02:57.4]} 10... Nxh7 {[%clk 0:01:22]} 11. Nge2 {[%clk 0:02:56]}
11... Nc6 {[%clk 0:01:22]} 12. Kf2 {[%clk 0:02:49.2]} 12... Rc8 {[%clk
0:01:21.7]} 13. Kg2 {[%clk 0:02:49]} 13... Nf6 {[%clk 0:01:20.8]} 14. Bg3 {[%clk
0:02:26.8]} 14... Qb6 {[%clk 0:01:20.9]} 15. Rb1 {[%clk 0:02:25.9]} 15... Be7
{[%clk 0:01:19.5]} 16. Na4 {[%clk 0:02:13.7]} 16... Qa5 {[%clk 0:01:17.8]} 17.
Nxc5 {[%clk 0:02:05.6]} 17... Bxc5 {[%clk 0:01:17.6]} 18. dxc5 {[%clk
0:02:05.6]} 18... Qxc5 {[%clk 0:01:18.5]} 19. Bf2 {[%clk 0:01:58.6]} 19... O-O
{[%clk 0:01:18.3]} 20. c3 {[%clk 0:01:56.2]} 20... Qe7 {[%clk 0:01:18.6]} 21.
Bh4 {[%clk 0:01:51.9]} 21... Qc5 {[%clk 0:01:16.8]} 22. Bf2 {[%clk 0:01:51.2]}
22... Rfe8 {[%clk 0:01:16.1]} 23. Nd4 {[%clk 0:01:45.6]} 23... Ne5 {[%clk
0:01:13.1]} 24. Qe2 {[%clk 0:01:38.7]} 24... Nc4 {[%clk 0:01:11.7]} 25. Bh4
{[%clk 0:01:32.7]} 25... Nh7 {[%clk 0:01:09.8]} 26. Bg3 {[%clk 0:01:23.8]} 26...
Ng5 {[%clk 0:01:05.1]} 27. Bh4 {[%clk 0:01:19.1]} 27... f6 {[%clk 0:01:05.4]}
28. Bg3 {[%clk 0:01:14.1]} 28... Rcd8 {[%clk 0:00:58.8]} 29. Rbd1 {[%clk
0:01:11.3]} 29... Qb6 {[%clk 0:00:57.4]} 30. b3 {[%clk 0:01:11.3]} 30... Nd6
{[%clk 0:00:55.9]} 31. c4 {[%clk 0:01:08.3]} 31... dxc4 {[%clk 0:00:54.7]} 32.
bxc4 {[%clk 0:01:09.1]} 32... Ndf7 {[%clk 0:00:52.4]} 33. Nb3 {[%clk 0:01:06.2]}
33... e5 {[%clk 0:00:50.5]} 34. e4 {[%clk 0:00:55]} 34... Ne6 {[%clk 0:00:50.1]}
35. Rd5 {[%clk 0:00:55.2]} 35... Nc7 {[%clk 0:00:49]} 36. Bf2 {[%clk 0:00:53.2]}
36... Nxd5 {[%clk 0:00:44.9]} 37. Bxb6 {[%clk 0:00:31.5]} 37... Nf4+ {[%clk
0:00:45.8]} 38. Kf2 {[%clk 0:00:31.8]} 38... Nxe2 {[%clk 0:00:44.8]} 39. Bxd8
{[%clk 0:00:32.5]} 39... Rxd8 {[%clk 0:00:29.8]} 40. Kxe2 {[%clk 0:00:32.2]}
40... Ng5 {[%clk 0:00:30.1]} 41. Nc5 {[%clk 0:00:17.6]} 41... b6 {[%clk
0:00:30.4]} 42. Nxa6 {[%clk 0:00:17.4]} 42... Ne6 {[%clk 0:00:31]} 43. Rd1
{[%clk 0:00:16.2]} 43... Nd4+ {[%clk 0:00:28.8]} 44. Kf2 {[%clk 0:00:13.9]}
44... Ra8 {[%clk 0:00:28.8]} 45. Nb4 {[%clk 0:00:14.3]} 45... Ra4 {[%clk
0:00:28.9]} 46. Rb1 {[%clk 0:00:14.5]} 46... Ra3 {[%clk 0:00:27.5]} 47. Nd5
{[%clk 0:00:13.9]} 47... Rxf3+ {[%clk 0:00:25.1]} 48. Kg2 {[%clk 0:00:13.9]}
48... Ra3 {[%clk 0:00:20.9]} 49. Rxb6 {[%clk 0:00:14.2]} 49... Rxa2+ {[%clk
0:00:21.5]} 50. Kh3 {[%clk 0:00:13.5]} 50... Ra3+ {[%clk 0:00:21.8]} 51. Kg2
{[%clk 0:00:13.5]} 51... Ra2+ {[%clk 0:00:22.3]} 52. Kh3 {[%clk 0:00:13.7]}
52... Re2 {[%clk 0:00:22.8]} 53. Rb8+ {[%clk 0:00:12.4]} 53... Kf7 {[%clk
0:00:22.9]} 54. Rb7+ {[%clk 0:00:12.7]} 54... Kf8 {[%clk 0:00:23.3]} 55. Rb8+
{[%clk 0:00:12.9]} 55... Kf7 {[%clk 0:00:23.8]} 56. Rb7+ {[%clk 0:00:13.2]}
56... Kg8 {[%clk 0:00:22.4]} 57. Ne7+ {[%clk 0:00:11.3]} 57... Kf8 {[%clk
0:00:21.4]} 58. Ng6+ {[%clk 0:00:09.9]} 58... Ke8 {[%clk 0:00:21.9]} 59. Rxg7
{[%clk 0:00:08.9]} 59... Rxe4 {[%clk 0:00:22.1]} 60. c5 {[%clk 0:00:09]} 60...
Re3+ {[%clk 0:00:19.3]} 61. Kg2 {[%clk 0:00:09]} 61... Rc3 {[%clk 0:00:19.8]}
62. Rh7 {[%clk 0:00:09.5]} 62... Rc2+ {[%clk 0:00:19]} 63. Kh3 {[%clk 0:00:09]}
63... Nf3 {[%clk 0:00:16.1]} 64. Rxh6 {[%clk 0:00:07.2]} 64... Ng5+ {[%clk
0:00:16.3]} 65. Kg3 {[%clk 0:00:06.8]} 65... e4 {[%clk 0:00:17.2]} 66. Rh8+
{[%clk 0:00:06.4]} 66... Kf7 {[%clk 0:00:17.2]} 67. Rd8 {[%clk 0:00:05.4]} 67...
e3 {[%clk 0:00:17.1]} 68. Rd7+ {[%clk 0:00:04.5]} 68... Kg8 {[%clk 0:00:16.5]}
69. Re7 {[%clk 0:00:05.4]} 69... e2 {[%clk 0:00:16.1]} 70. h6 {[%clk 0:00:05.7]}
70... Rxc5 {[%clk 0:00:11.3]} 71. Rg7# {[%clk 0:00:05.4]} 1-0

[Event "*** SCC Grand Prix: Titled Tuesday Blitz"]
[Site "Chess.com"]
[Date "2020.09.08"]
[Round "8"]
[White "Jumbo"]
[Black "Agibileg"]
[Result "1-0"]
[WhiteElo "2756"]
[BlackElo "2580"]
[TimeControl "180+1"]
[EndTime "11:38:25 PDT"]
[Termination "Jumbo won by checkmate"]

1. d4 {[%clk 0:03:00.9]} 1... Nf6 {[%clk 0:02:59.3]} 2. c4 {[%clk 0:02:58.4]}
2... g6 {[%clk 0:02:59.4]} 3. g3 {[%clk 0:02:52.6]} 3... Bg7 {[%clk 0:02:59.4]}
4. Bg2 {[%clk 0:02:53.5]} 4... O-O {[%clk 0:02:59.2]} 5. Nf3 {[%clk 0:02:53.4]}
5... d6 {[%clk 0:02:59.7]} 6. O-O {[%clk 0:02:53.7]} 6... Nbd7 {[%clk 0:03:00]}
7. Nc3 {[%clk 0:02:54.1]} 7... e5 {[%clk 0:02:59.9]} 8. e4 {[%clk 0:02:52.3]}
8... c6 {[%clk 0:02:57.8]} 9. Rb1 {[%clk 0:02:38.7]} 9... exd4 {[%clk
0:02:53.5]} 10. Nxd4 {[%clk 0:02:37.4]} 10... Qa5 {[%clk 0:02:42.7]} 11. b4
{[%clk 0:02:30.3]} 11... Qc7 {[%clk 0:02:40.1]} 12. Qc2 {[%clk 0:02:17.1]} 12...
Ne5 {[%clk 0:02:36.4]} 13. c5 {[%clk 0:02:13.2]} 13... dxc5 {[%clk 0:02:29.2]}
14. bxc5 {[%clk 0:02:14.1]} 14... Nfd7 {[%clk 0:02:23.5]} 15. Nce2 {[%clk
0:02:12.5]} 15... Rd8 {[%clk 0:01:40.4]} 16. h3 {[%clk 0:02:08.4]} 16... Nf8
{[%clk 0:01:39]} 17. f4 {[%clk 0:02:05.5]} 17... Ned7 {[%clk 0:01:34.3]} 18. e5
{[%clk 0:02:04]} 18... Nb8 {[%clk 0:01:22]} 19. g4 {[%clk 0:01:47.9]} 19... Na6
{[%clk 0:01:19.9]} 20. Be3 {[%clk 0:01:32.9]} 20... Qe7 {[%clk 0:01:19]} 21. Bf2
{[%clk 0:01:15.2]} 21... Qxc5 {[%clk 0:00:56.7]} 22. Qxc5 {[%clk 0:01:14.6]}
22... Nxc5 {[%clk 0:00:57.6]} 23. Nxc6 {[%clk 0:01:15]} 23... bxc6 {[%clk
0:00:57.4]} 24. Bxc5 {[%clk 0:01:15.2]} 24... Ba6 {[%clk 0:00:56.2]} 25. Rf2
{[%clk 0:00:31.1]} 25... Ne6 {[%clk 0:00:55.6]} 26. Be3 {[%clk 0:00:30.5]} 26...
Rd3 {[%clk 0:00:54.8]} 27. Rb3 {[%clk 0:00:30]} 27... Rd1+ {[%clk 0:00:47.1]}
28. Kh2 {[%clk 0:00:29.7]} 28... Re1 {[%clk 0:00:46.7]} 29. Ng3 {[%clk
0:00:27.8]} 29... Bc4 {[%clk 0:00:43.5]} 30. Rc3 {[%clk 0:00:27.4]} 30... Bd5
{[%clk 0:00:38.6]} 31. Bd2 {[%clk 0:00:20.8]} 31... Ra1 {[%clk 0:00:31.1]} 32.
a3 {[%clk 0:00:19.6]} 32... Bxg2 {[%clk 0:00:30]} 33. Kxg2 {[%clk 0:00:19.2]}
33... Rd8 {[%clk 0:00:28.3]} 34. Ne4 {[%clk 0:00:19.1]} 34... Rd4 {[%clk
0:00:26.6]} 35. Nd6 {[%clk 0:00:15.1]} 35... Rxd2 {[%clk 0:00:24.9]} 36. Rxd2
{[%clk 0:00:14.7]} 36... Nxf4+ {[%clk 0:00:25.5]} 37. Kf3 {[%clk 0:00:15.2]}
37... Bxe5 {[%clk 0:00:26.4]} 38. Rxc6 {[%clk 0:00:15.2]} 38... Nxh3 {[%clk
0:00:22.8]} 39. Nc4 {[%clk 0:00:12.2]} 39... Ng5+ {[%clk 0:00:22.6]} 40. Kg2
{[%clk 0:00:11.9]} 40... Bf4 {[%clk 0:00:21.4]} 41. Rf2 {[%clk 0:00:11.8]} 41...
Bc1 {[%clk 0:00:11]} 42. Ra6 {[%clk 0:00:11.6]} 42... Ne6 {[%clk 0:00:07.1]} 43.
Rxa7 {[%clk 0:00:11.1]} 43... Nf4+ {[%clk 0:00:06.4]} 44. Kg3 {[%clk 0:00:10.6]}
44... g5 {[%clk 0:00:05.3]} 45. Rc2 {[%clk 0:00:06.5]} 45... Rb1 {[%clk
0:00:05.4]} 46. Rd7 {[%clk 0:00:06]} 46... Rb3+ {[%clk 0:00:04.9]} 47. Kf2
{[%clk 0:00:06.4]} 47... Bxa3 {[%clk 0:00:04.1]} 48. Rd8+ {[%clk 0:00:05.6]}
48... Kg7 {[%clk 0:00:03.7]} 49. Ne5 {[%clk 0:00:05.6]} 49... Be7 {[%clk
0:00:02.8]} 50. Nf3 {[%clk 0:00:05]} 50... Nd3+ {[%clk 0:00:01.6]} 51. Rxd3
{[%clk 0:00:04.2]} 51... Bd8 {[%clk 0:00:02.5]} 52. Rxd8 {[%clk 0:00:03.7]}
52... Ra3 {[%clk 0:00:02.2]} 53. Rd4 {[%clk 0:00:03.7]} 53... f6 {[%clk
0:00:01.4]} 54. Re4 {[%clk 0:00:04]} 54... Kg6 {[%clk 0:00:02.3]} 55. Re3 {[%clk
0:00:04.5]} 55... Ra4 {[%clk 0:00:02.7]} 56. Rce2 {[%clk 0:00:04.9]} 56... h5
{[%clk 0:00:02.7]} 57. gxh5+ {[%clk 0:00:04.5]} 57... Kxh5 {[%clk 0:00:03.6]}
58. Re6 {[%clk 0:00:04.7]} 58... Rf4 {[%clk 0:00:03.9]} 59. R6e4 {[%clk
0:00:04.6]} 59... Rf5 {[%clk 0:00:03.9]} 60. Kg3 {[%clk 0:00:05.1]} 60... Kg6
{[%clk 0:00:04.2]} 61. Rg4 {[%clk 0:00:04.1]} 61... Rd5 {[%clk 0:00:03.8]} 62.
Rge4 {[%clk 0:00:03.3]} 62... Rd3 {[%clk 0:00:03.1]} 63. R4e3 {[%clk 0:00:03.5]}
63... Rd5 {[%clk 0:00:03.7]} 64. Re6 {[%clk 0:00:03.9]} 64... Rf5 {[%clk
0:00:04.3]} 65. Ra6 {[%clk 0:00:04.4]} 65... Rf4 {[%clk 0:00:04.6]} 66. Ree6
{[%clk 0:00:04.9]} 66... Kh5 {[%clk 0:00:03.7]} 67. Rxf6 {[%clk 0:00:04.4]}
67... Rg4+ {[%clk 0:00:04]} 68. Kf2 {[%clk 0:00:04.3]} 68... Rb4 {[%clk
0:00:03]} 69. Rf5 {[%clk 0:00:04.6]} 69... Kg4 {[%clk 0:00:03.9]} 70. Rxg5+
{[%clk 0:00:04.5]} 70... Kf4 {[%clk 0:00:02.9]} 71. Rf6+ {[%clk 0:00:04.8]}
71... Ke4 {[%clk 0:00:03.1]} 72. Rg4+ {[%clk 0:00:04.9]} 72... Kd3 {[%clk
0:00:02.2]} 73. Rxb4 {[%clk 0:00:05.4]} 73... Kc3 {[%clk 0:00:03]} 74. Rd4
{[%clk 0:00:05.8]} 74... Kc2 {[%clk 0:00:02.8]} 75. Rc6+ {[%clk 0:00:06.1]}
75... Kb3 {[%clk 0:00:03.7]} 76. Rc8 {[%clk 0:00:06.4]} 76... Ka3 {[%clk
0:00:03.5]} 77. Rd7 {[%clk 0:00:06.8]} 77... Kb3 {[%clk 0:00:03.7]} 78. Rb7+
{[%clk 0:00:07.3]} 78... Ka4 {[%clk 0:00:04.4]} 79. Ra8# {[%clk 0:00:08.2]} 1-0

[Event "*** SCC Grand Prix: Titled Tuesday Blitz"]
[Site "Chess.com"]
[Date "2020.09.08"]
[Round "8"]
[White "chessplayer9919"]
[Black "fireheart92"]
[Result "0-1"]
[WhiteElo "2595"]
[BlackElo "2849"]
[TimeControl "180+1"]
[EndTime "11:38:28 PDT"]
[Termination "fireheart92 won by resignation"]

1. d4 {[%clk 0:03:00.9]} 1... e6 {[%clk 0:02:55.8]} 2. e4 {[%clk 0:02:57]} 2...
d5 {[%clk 0:02:54.9]} 3. exd5 {[%clk 0:02:57.1]} 3... exd5 {[%clk 0:02:54.3]} 4.
Bd3 {[%clk 0:02:56.7]} 4... Nc6 {[%clk 0:02:53.4]} 5. c3 {[%clk 0:02:56.1]} 5...
Bd6 {[%clk 0:02:53.6]} 6. Ne2 {[%clk 0:02:55.7]} 6... Nge7 {[%clk 0:02:53.5]} 7.
O-O {[%clk 0:02:55.5]} 7... O-O {[%clk 0:02:53.2]} 8. Bf4 {[%clk 0:02:54.7]}
8... Bxf4 {[%clk 0:02:50.6]} 9. Nxf4 {[%clk 0:02:55.6]} 9... Qd6 {[%clk
0:02:50.7]} 10. Qf3 {[%clk 0:02:39.2]} 10... Nd8 {[%clk 0:02:34.2]} 11. Na3
{[%clk 0:02:33.1]} 11... c6 {[%clk 0:02:33.3]} 12. Nc2 {[%clk 0:02:31.1]} 12...
Ne6 {[%clk 0:02:33]} 13. Nxe6 {[%clk 0:02:28.4]} 13... Bxe6 {[%clk 0:02:33.9]}
14. Ne3 {[%clk 0:02:21.9]} 14... Rae8 {[%clk 0:02:33.6]} 15. Qg3 {[%clk
0:02:19.4]} 15... Nc8 {[%clk 0:02:29.6]} 16. Rfe1 {[%clk 0:02:14.3]} 16... Qxg3
{[%clk 0:02:26.5]} 17. hxg3 {[%clk 0:02:14.1]} 17... Nd6 {[%clk 0:02:27.4]} 18.
f3 {[%clk 0:02:10.4]} 18... h5 {[%clk 0:02:23.7]} 19. Kf2 {[%clk 0:02:10.6]}
19... g6 {[%clk 0:02:22.9]} 20. Nf1 {[%clk 0:02:09.5]} 20... Re7 {[%clk
0:02:16.3]} 21. Re5 {[%clk 0:02:07]} 21... Rfe8 {[%clk 0:02:14.5]} 22. Rae1
{[%clk 0:02:04.2]} 22... Kf8 {[%clk 0:02:12.5]} 23. Nd2 {[%clk 0:01:55.5]} 23...
Bf5 {[%clk 0:02:05.5]} 24. Rxe7 {[%clk 0:01:46.6]} 24... Rxe7 {[%clk 0:02:05.3]}
25. Rxe7 {[%clk 0:01:38.2]} 25... Kxe7 {[%clk 0:02:06.2]} 26. Be2 {[%clk
0:01:30.2]} 26... b6 {[%clk 0:02:05.7]} 27. Nf1 {[%clk 0:01:30.2]} 27... a5
{[%clk 0:02:04.2]} 28. Ne3 {[%clk 0:01:30.4]} 28... Be6 {[%clk 0:02:01.6]} 29.
Bd3 {[%clk 0:01:18.5]} 29... c5 {[%clk 0:02:01.8]} 30. Ke1 {[%clk 0:00:56.8]}
30... c4 {[%clk 0:01:55]} 31. Bc2 {[%clk 0:00:49.4]} 31... b5 {[%clk 0:01:55.4]}
32. Kd2 {[%clk 0:00:48.9]} 32... Kf6 {[%clk 0:01:48.8]} 33. a3 {[%clk
0:00:41.4]} 33... g5 {[%clk 0:01:46]} 34. Ke2 {[%clk 0:00:40.9]} 34... h4 {[%clk
0:01:45.6]} 35. Kf2 {[%clk 0:00:38.7]} 35... Nc8 {[%clk 0:01:39.7]} 36. Nf1
{[%clk 0:00:28.8]} 36... Ne7 {[%clk 0:01:33.2]} 37. Ne3 {[%clk 0:00:24.4]} 37...
Bd7 {[%clk 0:01:28.3]} 38. Bb1 {[%clk 0:00:15.1]} 38... Be6 {[%clk 0:00:53.9]}
39. Bc2 {[%clk 0:00:15.1]} 39... Nc8 {[%clk 0:00:52.9]} 40. Bb1 {[%clk 0:00:13]}
40... Nb6 {[%clk 0:00:52.2]} 41. Bc2 {[%clk 0:00:13.2]} 41... Bd7 {[%clk
0:00:49.3]} 42. Bd1 {[%clk 0:00:08.8]} 42... Bf5 {[%clk 0:00:40.3]} 43. gxh4
{[%clk 0:00:05.4]} 43... gxh4 {[%clk 0:00:40.1]} 44. g4 {[%clk 0:00:05.6]} 44...
hxg3+ {[%clk 0:00:40]} 45. Kxg3 {[%clk 0:00:06.5]} 45... Bd3 {[%clk 0:00:36.7]}
46. Kf4 {[%clk 0:00:06.1]} 46... Ke6 {[%clk 0:00:35.2]} 47. Ng4 {[%clk
0:00:03.6]} 47... f6 {[%clk 0:00:32.2]} 48. Ne3 {[%clk 0:00:03.7]} 48... Nc8
{[%clk 0:00:29.4]} 49. Kg3 {[%clk 0:00:02.8]} 49... Ne7 {[%clk 0:00:27.8]} 50.
Kf4 {[%clk 0:00:03.1]} 50... Ng6+ {[%clk 0:00:25.7]} 51. Kg3 {[%clk 0:00:03.5]}
51... Kd6 {[%clk 0:00:19.9]} 52. Ng4 {[%clk 0:00:02.9]} 52... f5 {[%clk
0:00:18.3]} 53. Nf2 {[%clk 0:00:02.8]} 53... Bb1 {[%clk 0:00:18.2]} 54. f4
{[%clk 0:00:02.4]} 54... Ke6 {[%clk 0:00:18.1]} 55. Bh5 {[%clk 0:00:02.5]} 55...
Ne7 {[%clk 0:00:15.7]} 56. Bf3 {[%clk 0:00:03.1]} 56... Bc2 {[%clk 0:00:14.4]}
57. Nh3 {[%clk 0:00:02.3]} 57... Kf6 {[%clk 0:00:14.2]} 58. Kf2 {[%clk
0:00:01.8]} 58... Be4 {[%clk 0:00:14.7]} 59. Ke3 {[%clk 0:00:01.6]} 59... b4
{[%clk 0:00:15]} 60. axb4 {[%clk 0:00:01.6]} 60... axb4 {[%clk 0:00:15.9]} 61.
Ng1 {[%clk 0:00:01.7]} 61... b3 {[%clk 0:00:15.7]} 62. Kd2 {[%clk 0:00:02.1]}
62... Nc8 {[%clk 0:00:15.5]} 63. Kc1 {[%clk 0:00:02.5]} 63... Nd6 {[%clk
0:00:15.3]} 64. Be2 {[%clk 0:00:02.9]} 64... Kg6 {[%clk 0:00:15.5]} 65. Bf3
{[%clk 0:00:03.3]} 65... Bxf3 {[%clk 0:00:15.6]} 66. Nxf3 {[%clk 0:00:03.9]}
66... Kh5 {[%clk 0:00:16.5]} 67. Kd2 {[%clk 0:00:03.3]} 67... Kg4 {[%clk
0:00:16.8]} 68. Ke3 {[%clk 0:00:03.8]} 68... Ne4 {[%clk 0:00:17]} 69. Ne5+
{[%clk 0:00:04.1]} 69... Kg3 {[%clk 0:00:16.9]} 70. Nf3 {[%clk 0:00:02.1]} 70...
Kg2 {[%clk 0:00:15]} 71. Ne1+ {[%clk 0:00:02.2]} 71... Kf1 {[%clk 0:00:14.8]}
72. Nf3 {[%clk 0:00:03.1]} 72... Kg2 {[%clk 0:00:14.4]} 73. Ne1+ {[%clk
0:00:03.4]} 73... Kh3 {[%clk 0:00:14.6]} 74. Nf3 {[%clk 0:00:04.3]} 74... Kg3
{[%clk 0:00:14.8]} 75. Ne1 {[%clk 0:00:04.3]} 75... Nxc3 {[%clk 0:00:15.1]} 76.
Kd2 {[%clk 0:00:01.8]} 76... Ne4+ {[%clk 0:00:14.8]} 77. Ke3 {[%clk 0:00:02.7]}
77... c3 {[%clk 0:00:15.3]} 78. bxc3 {[%clk 0:00:03.6]} 78... b2 {[%clk
0:00:15.6]} 0-1